fUSD/lending_fUSD_20241225
["ID","MTS","AMOUNT","RATE_DAILY","PERIOD"]
[346644168,1735149041757,-500.0,0.00011816,2]
[346644169,1735149041766,-500.0,0.00011816,2]
[346644170,1735149041775,-500.0,0.00011816,2]
[346644171,1735149041784,-500.0,0.00011816,2]
[346644172,1735149041795,-499.98,0.00011816,2]
[346644173,1735149041803,-500.0,0.00011816,2]
[346644174,1735149041813,-500.0,0.00011816,2]
[346644175,1735149041822,-500.0,0.00011816,2]
[346644176,1735149041833,-500.0,0.00011816,2]
[346644177,1735149041843,-500.66510766,0.00011816,2]
[346644178,1735149041852,-500.0,0.00011816,2]
[346644179,1735149041861,-500.0,0.00011816,2]
[346644180,1735149041870,-500.0,0.00011816,2]
[346644181,1735149041879,-504.55951917,0.00011816,2]
[346644182,1735149041888,-500.0,0.00011816,2]
[346644183,1735149041897,-501.18949049,0.00011816,2]
[346644184,1735149041907,-500.0,0.00011816,2]
[346644185,1735149041917,-500.0,0.00011816,2]
[346644186,1735149041928,-500.0,0.00011816,2]
[346644187,1735149041938,-5326.14275075,0.00011816,2]
[346644188,1735149041947,-157.014978,0.00011817,2]
[346644189,1735149041957,-340.07,0.00011817,2]
[346644190,1735149041967,-500.0,0.00011817,2]
[346644191,1735149041976,-500.0,0.00011817,2]
[346644192,1735149041985,-483.27,0.00011817,2]
[346644193,1735149041995,-500.0,0.00011817,2]
[346644194,1735149042004,-500.0,0.00011817,2]
[346644195,1735149042013,-386.92979387,0.00011817,2]
[346644196,1735149042023,-500.0,0.00011817,2]
[346644197,1735149042032,-500.0,0.00011817,2]
[346644198,1735149042042,-500.0,0.00011817,2]
[346644199,1735149042051,-500.0,0.00011817,2]
[346644200,1735149042061,-500.0,0.00011817,2]
[346644201,1735149042071,-500.0,0.00011817,2]
[346644202,1735149042080,-501.83637131,0.00011817,2]
[346644203,1735149042089,-505.81573014,0.00011817,2]
[346644204,1735149042099,-500.0,0.00011817,2]
[346644205,1735149042108,-500.0,0.00011817,2]
[346644206,1735149042118,-500.0,0.00011817,2]
[346644207,1735149042127,-500.0,0.00011817,2]
[346644208,1735149042136,-500.0,0.00011817,2]
[346644209,1735149042145,-500.0,0.00011817,2]
[346644210,1735149042155,-500.0,0.00011817,2]
[346644211,1735149042164,-500.0,0.00011817,2]
[346644212,1735149042174,-503.24,0.00011817,2]
[346644213,1735149042183,-500.0,0.00011817,2]
[346644214,1735149042192,-500.0,0.00011817,2]
[346644215,1735149042201,-500.0,0.00011817,2]
[346644216,1735149042211,-500.0,0.00011817,2]
[346644217,1735149042220,-500.0,0.00011817,2]
[346644218,1735149042229,-475.97554386,0.00011817,2]
[346644232,1735149042943,-500.0,0.00011816,2]
[346644234,1735149042952,-500.0,0.00011816,2]
[346644236,1735149042961,-24.02445614,0.00011817,2]
[346644237,1735149042970,-144.97554386,0.00011817,2]
[346644249,1735149043075,-231.0513043,0.00011817,2]
[346644251,1735149043084,-500.0,0.00011817,2]
[346644253,1735149043093,-477.41594708,0.00011817,2]
[346644255,1735149043102,-500.0,0.00011817,2]
[346644257,1735149043111,-500.0,0.00011817,2]
[346644259,1735149043120,-500.0,0.00011817,2]
[346644261,1735149043129,-500.0,0.00011817,2]
[346644263,1735149043138,-500.0,0.00011817,2]
[346644265,1735149043147,-500.0,0.00011817,2]
[346644267,1735149043156,-500.0,0.00011817,2]
[346644269,1735149043165,-500.0,0.00011817,2]
[346644271,1735149043174,-500.0,0.00011817,2]
[346644273,1735149043183,-386.26512794,0.00011817,2]
[346644275,1735149043192,-196.53,0.00011817,2]
[346644277,1735149043201,-500.0,0.00011817,2]
[346644279,1735149043210,-500.0,0.00011817,2]
[346644280,1735149043219,-249.6,0.00011817,2]
[346644282,1735149043228,-526.01,0.00011817,2]
[346644283,1735149043237,-500.0,0.00011817,2]
[346644284,1735149043246,-632.29,0.00011817,2]
[346644285,1735149043255,-182.37,0.00011817,2]
[346644286,1735149043264,-500.0,0.00011817,2]
[346644287,1735149043273,-500.0,0.00011817,2]
[346644288,1735149043283,-500.0,0.00011817,2]
[346644289,1735149043292,-580.03,0.00011817,2]
[346644290,1735149043301,-500.0,0.00011817,2]
[346644291,1735149043310,-301.8,0.00011817,2]
[346644292,1735149043319,-500.0,0.00011817,2]
[346644293,1735149043328,-500.0,0.00011817,2]
[346644294,1735149043337,-155.06,0.00011817,2]
[346644297,1735149043347,-500.0,0.00011817,2]
[346644299,1735149043356,-500.0,0.00011817,2]
[346644301,1735149043365,-500.0,0.00011817,2]
[346644303,1735149043374,-500.0,0.00011817,2]
[346644305,1735149043383,-230.45,0.00011817,2]
[346644307,1735149043393,-500.0,0.00011817,2]
[346644309,1735149043403,-500.0,0.00011817,2]
[346644311,1735149043412,-500.0,0.00011817,2]
[346644312,1735149043422,-500.0,0.00011817,2]
[346644313,1735149043431,-500.0,0.00011817,2]
[346644314,1735149043440,-500.0,0.00011817,2]
[346644315,1735149043450,-508.09235978,0.00011817,2]
[346644316,1735149043459,-500.0,0.00011817,2]
[346644317,1735149043468,-500.0,0.00011817,2]
[346644318,1735149043477,-500.0,0.00011817,2]
[346644319,1735149043486,-500.0,0.00011817,2]
[346644320,1735149043496,-500.0,0.00011817,2]
[346644322,1735149043505,-500.0,0.00011817,2]
[346644323,1735149043515,-500.0,0.00011817,2]
[346644324,1735149043524,-500.0,0.00011817,2]
[346644325,1735149043533,-500.0,0.00011817,2]
[346644326,1735149043543,-500.0,0.00011817,2]
[346644327,1735149043551,-500.0,0.00011817,2]
[346644328,1735149043561,-500.0,0.00011817,2]
[346644329,1735149043570,-500.0,0.00011817,2]
[346644330,1735149043579,-500.0,0.00011817,2]
[346644331,1735149043588,-500.0,0.00011817,2]
[346644332,1735149043597,-500.0,0.00011817,2]
[346644333,1735149043606,-500.0,0.00011817,2]
[346644334,1735149043616,-500.0,0.00011817,2]
[346644335,1735149043625,-500.0,0.00011817,2]
[346644336,1735149043634,-500.0,0.00011817,2]
[346644337,1735149043643,-500.0,0.00011817,2]
[346644338,1735149043652,-500.0,0.00011817,2]
[346644339,1735149043662,-500.0,0.00011817,2]
[346644340,1735149043671,-325.09,0.00011817,2]
[346644341,1735149043680,-500.0,0.00011817,2]
[346644342,1735149043689,-500.0,0.00011817,2]
[346644343,1735149043698,-500.0,0.00011817,2]
[346644344,1735149043707,-562.07,0.00011817,2]
[346644345,1735149043716,-500.0,0.00011817,2]
[346644346,1735149043725,-500.0,0.00011817,2]
[346644347,1735149043734,-500.0,0.00011817,2]
[346644348,1735149043744,-500.0,0.00011817,2]
[346644349,1735149043756,-500.0,0.00011817,2]
[346644350,1735149043765,-500.0,0.00011817,2]
[346644351,1735149043775,-500.0,0.00011817,2]
[346644352,1735149043784,-517.74,0.00011817,2]
[346644353,1735149043795,-500.0,0.00011817,2]
[346644354,1735149043807,-500.0,0.00011817,2]
[346644355,1735149043817,-500.0,0.00011817,2]
[346644356,1735149043827,-436.19,0.00011817,2]
[346644357,1735149043838,-607.69,0.00011817,2]
[346644358,1735149043852,-500.0,0.00011817,2]
[346644359,1735149043862,-500.0,0.00011817,2]
[346644360,1735149043871,-500.0,0.00011817,2]
[346644361,1735149043880,-500.0,0.00011817,2]
[346644362,1735149043890,-340.04,0.00011817,2]
[346644363,1735149043899,-472.67,0.00011817,2]
[346644364,1735149043908,-340.9,0.00011817,2]
[346644365,1735149043920,-291.44,0.00011817,2]
[346644366,1735149043930,-500.0,0.00011817,2]
[346644367,1735149043939,-225.08,0.00011817,2]
[346644368,1735149043948,-216.96,0.00011817,2]
[346644369,1735149043957,-500.0,0.00011817,2]
[346644370,1735149043967,-500.0,0.00011817,2]
[346644371,1735149043976,-330.6,0.00011817,2]
[346644372,1735149043985,-500.0,0.00011817,2]
[346644373,1735149043995,-500.0,0.00011817,2]
[346644374,1735149044005,-382.86,0.00011817,2]
[346644375,1735149044014,-500.0,0.00011817,2]
[346644376,1735149044023,-500.0,0.00011817,2]
[346644377,1735149044033,-301.59,0.00011817,2]
[346644378,1735149044042,-500.0,0.00011817,2]
[346644379,1735149044052,-500.0,0.00011817,2]
[346644380,1735149044061,-500.0,0.00011817,2]
[346644381,1735149044071,-500.0,0.00011817,2]
[346644382,1735149044082,-500.0,0.00011817,2]
[346644383,1735149044092,-500.0,0.00011817,2]
[346644384,1735149044101,-500.0,0.00011817,2]
[346644385,1735149044111,-500.0,0.00011817,2]
[346644386,1735149044121,-500.58168445,0.00011817,2]
[346644387,1735149044131,-500.0,0.00011817,2]
[346644388,1735149044140,-500.0,0.00011817,2]
[346644389,1735149044150,-162.97845884,0.00011817,2]
[346644390,1735149044161,-500.0,0.00011817,2]
[346644391,1735149044170,-500.0,0.00011817,2]
[346644392,1735149044179,-500.0,0.00011817,2]
[346644393,1735149044189,-257.5367508,0.00011817,2]
[346644394,1735149044215,-242.4632492,0.00011817,2]
[346644395,1735149044225,-262.03541035,0.00011817,2]
[346644396,1735149044234,-500.0,0.00011817,2]
[346644397,1735149044243,-500.0,0.00011817,2]
[346644398,1735149044252,-500.0,0.00011817,2]
[346644399,1735149044261,-500.0,0.00011817,2]
[346644400,1735149044271,-500.0,0.00011817,2]
[346644401,1735149044280,-500.0,0.00011817,2]
[346644402,1735149044289,-500.0,0.00011817,2]
[346644403,1735149044298,-500.0,0.00011817,2]
[346644404,1735149044308,-500.0,0.00011817,2]
[346644405,1735149044317,-500.0,0.00011817,2]
[346644406,1735149044326,-593.78,0.00011817,2]
[346644407,1735149044335,-500.0,0.00011817,2]
[346644408,1735149044345,-500.0,0.00011817,2]
[346644409,1735149044354,-500.0,0.00011817,2]
[346644410,1735149044364,-500.0,0.00011817,2]
[346644411,1735149044374,-150.0,0.00011817,2]
[346644412,1735149044383,-500.0,0.00011817,2]
[346644413,1735149044392,-500.0,0.00011817,2]
[346644414,1735149044402,-3452.39789497,0.00011817,2]
[346644416,1735149045799,-500.0,0.00011816,2]
[346644417,1735149045809,-500.0,0.00011816,2]
[346644418,1735149045819,-701.06,0.00011816,2]
[346644419,1735149045830,-1547.60210503,0.00011817,2]
[346644420,1735149045839,-67.90154596,0.00011817,2]
[346644421,1735149045851,-432.09845404,0.00011817,2]
[346644422,1735149045861,-314.94691139,0.00011817,2]
[346644423,1735149045939,-185.05308861,0.00011817,2]
[346644424,1735149045949,-500.0,0.00011817,2]
[346644425,1735149045958,-500.0,0.00011817,2]
[346644426,1735149045967,-500.0,0.00011817,2]
[346644427,1735149045977,-500.0,0.00011817,2]
[346644428,1735149045986,-100.54810236,0.00011817,2]
[346644429,1735149045997,-399.45189764,0.00011817,2]
[346644430,1735149046006,-500.0,0.00011817,2]
[346644431,1735149046015,-53.54810236,0.00011817,2]
[346644432,1735149046027,-446.45189764,0.00011817,2]
[346644433,1735149046036,-500.0,0.00011817,2]
[346644434,1735149046045,-500.0,0.00011817,2]
[346644435,1735149046055,-500.0,0.00011817,2]
[346644436,1735149046064,-500.0,0.00011817,2]
[346644437,1735149046073,-16.51255966,0.00011817,2]
[346644438,1735149046169,-1187.49744034,0.00011817,2]
[346644439,1735149046178,-615.5812369,0.00011817,2]
[346644440,1735149046188,-500.0,0.00011817,2]
[346644441,1735149046196,-466.69040915,0.00011817,2]
[346644442,1735149046207,-33.30959085,0.00011817,2]
[346644443,1735149046216,-500.0,0.00011817,2]
[346644444,1735149046225,-0.34040255,0.00011817,2]
[346644445,1735149287427,2000.0,0.000179,30]
[346644446,1735149287992,2000.0,0.0001791,30]
[346644447,1735149288647,2000.0,0.0001792,30]
[346644448,1735149289313,3193.84699,0.0001793,30]
[346644449,1735149340908,-1000.0,0.00019,60]
[346644450,1735149340941,-1000.0,0.00019,60]
[346644451,1735149341012,-1000.0,0.00019,60]
[346644452,1735149341055,-1000.0,0.00019,60]
[346644453,1735149341092,-46000.0,0.00019,60]
[346644454,1735149361687,-4000.0,0.00018,30]
[346644455,1735149361735,-3120.55,0.000189,31]
[346644456,1735149361767,-3120.55,0.000189,31]
[346644457,1735149361799,-3120.55,0.000189,31]
[346644458,1735149361830,-3120.55,0.000189,31]
[346644459,1735149361866,-3120.55,0.000189,31]
[346644460,1735149361898,-3120.55,0.000189,31]
[346644461,1735149361932,-1432.85,0.000189,31]
[346644462,1735149361990,-1687.7,0.000189,31]
[346644463,1735149362000,-2312.3,0.000189,31]
[346644464,1735149362034,-808.25,0.000189,31]
[346644465,1735149362043,-2312.3,0.000189,31]
[346644466,1735149362086,-808.25,0.000189,31]
[346644467,1735149362095,-2312.3,0.000189,31]
[346644468,1735149362127,-808.25,0.000189,31]
[346644469,1735149362136,-2312.3,0.000189,31]
[346644470,1735149362176,-808.25,0.000189,31]
[346644471,1735149362186,-2312.3,0.000189,31]
[346644472,1735149362218,-808.25,0.000189,31]
[346644473,1735149362227,-2312.3,0.000189,31]
[346644474,1735149362261,-808.25,0.000189,31]
[346644475,1735149362270,-2312.3,0.000189,31]
[346644476,1735149362315,-808.25,0.000189,31]
[346644477,1735149362325,-2312.3,0.000189,31]
[346644478,1735149618194,639.93,8.851e-05,2]
[346644480,1735150135444,162.54,0.00016658,30]
[346644491,1735150232222,-500.0,0.0001,2]
[346644492,1735150232232,-439.47,0.00010137,2]
[346644493,1735150232241,-1500.0,0.00010183,2]
[346644494,1735150232250,-1000.0,0.00010191,2]
[346644495,1735150232262,-328.83,0.00010634,2]
[346644496,1735150232272,-328.83,0.00010637,2]
[346644497,1735150232282,-328.83,0.0001064,2]
[346644498,1735150232292,-328.83,0.00010642,2]
[346644499,1735150232300,-328.83,0.00010645,2]
[346644500,1735150232309,-328.83,0.00010648,2]
[346644501,1735150232318,-328.83,0.00010651,2]
[346644502,1735150232328,-328.83,0.00010654,2]
[346644503,1735150232337,-328.83,0.00010656,2]
[346644504,1735150232347,-328.83,0.00010659,2]
[346644505,1735150232356,-328.83,0.00010662,2]
[346644506,1735150232366,-328.83,0.00010665,2]
[346644507,1735150232375,-328.83,0.00010667,2]
[346644508,1735150232385,-328.83,0.0001067,2]
[346644509,1735150232394,-328.83,0.00010673,2]
[346644510,1735150232405,-328.83,0.00010676,2]
[346644511,1735150232414,-328.83,0.00010679,2]
[346644512,1735150232424,-328.83,0.00010681,2]
[346644513,1735150232434,-328.83,0.00010684,2]
[346644514,1735150232443,-328.83,0.00010687,2]
[346644515,1735150232452,-185.71,0.00010752,2]
[346644516,1735150232462,-567.66,0.00010768,2]
[346644517,1735150232471,-200.05,0.00010916,2]
[346644518,1735150232480,-200.16,0.00010916,2]
[346644519,1735150232490,-201.13,0.00010916,2]
[346644520,1735150232499,-203.79,0.00010916,2]
[346644521,1735150232508,-200.04,0.00010916,2]
[346644522,1735150232517,-203.44,0.00010916,2]
[346644523,1735150232527,-250.0,0.00010917,2]
[346644524,1735150232536,-200.0,0.0001102,2]
[346644525,1735150232545,-201.8,0.0001102,2]
[346644526,1735150232554,-202.18,0.0001102,2]
[346644527,1735150232564,-201.13,0.0001102,2]
[346644528,1735150232573,-203.77,0.00011021,2]
[346644529,1735150232583,-202.32,0.00011022,2]
[346644530,1735150232592,-200.23,0.00011025,2]
[346644531,1735150232601,-202.17,0.0001103,2]
[346644532,1735150232612,-203.34,0.00011041,2]
[346644533,1735150232621,-200.19,0.00011041,2]
[346644534,1735150232631,-200.02,0.00011041,2]
[346644535,1735150232640,-201.32,0.00011041,2]
[346644536,1735150232649,-200.03,0.00011041,2]
[346644537,1735150232658,-203.57,0.00011041,2]
[346644538,1735150232668,-203.08,0.00011041,2]
[346644539,1735150232677,-202.95,0.00011041,2]
[346644540,1735150232686,-202.65,0.00011041,2]
[346644541,1735150232695,-201.41,0.00011041,2]
[346644542,1735150232704,-203.36,0.00011041,2]
[346644543,1735150232713,-202.23,0.00011041,2]
[346644544,1735150232723,-639.93,0.00011114,2]
[346644545,1735150232732,-426.698,0.000114,2]
[346644546,1735150232741,-1000.0,0.00011465,2]
[346644547,1735150232750,-205.55983675,0.0001152,2]
[346644548,1735150232777,-365.83119235,0.0001152,2]
[346644553,1735150235463,-40317.6089709,0.0001152,2]
[346644555,1735150235472,-1000.0,0.000116,2]
[346644557,1735150235482,-1000.0,0.000116,2]
[346644559,1735150235491,-1000.0,0.000117,2]
[346644560,1735150235500,-2011.0,0.00011706,2]
[346644562,1735150235509,-633.0,0.00011706,2]
[346644564,1735150235519,-565.0,0.00011706,2]
[346644566,1735150235528,-150.0,0.00011706,2]
[346644568,1735150235539,-1899.0,0.00011706,2]
[346644571,1735150235549,-3770.0,0.00011706,2]
[346644572,1735150235557,-818.0,0.00011706,2]
[346644574,1735150235567,-924.0,0.00011706,2]
[346644576,1735150235576,-1256.0,0.00011706,2]
[346644578,1735150235586,-3682.0,0.00011706,2]
[346644580,1735150235595,-536.0,0.00011706,2]
[346644582,1735150235604,-150.0,0.00011706,2]
[346644584,1735150235614,-1171.0,0.00011706,2]
[346644586,1735150235623,-3888.0,0.00011706,2]
[346644588,1735150235632,-288.2881,0.00011717,2]
[346644590,1735150235641,-201.63,0.00011718,2]
[346644592,1735150235651,-202.31,0.00011718,2]
[346644594,1735150235660,-202.9,0.00011718,2]
[346644596,1735150235669,-201.1,0.00011718,2]
[346644598,1735150235679,-201.33,0.00011718,2]
[346644600,1735150235688,-201.49,0.00011718,2]
[346644602,1735150235696,-201.86,0.00011718,2]
[346644604,1735150235706,-203.88,0.00011718,2]
[346644606,1735150235715,-202.8,0.00011718,2]
[346644608,1735150235725,-285.3803246,0.0001176,2]
[346644610,1735150235734,-1941.61,0.00011781,14]
[346644612,1735150235743,-1000.0,0.00011798,2]
[346644614,1735150235752,-1000.0,0.000118,2]
[346644616,1735150235761,-500.0,0.00011816,2]
[346644618,1735150235770,-573.66,0.00011816,2]
[346644620,1735150235779,-500.0,0.00011816,2]
[346644622,1735150235788,-500.0,0.00011816,2]
[346644624,1735150235798,-500.0,0.00011816,2]
[346644626,1735150235807,-500.0,0.00011816,2]
[346644628,1735150235816,-500.0,0.00011816,2]
[346644630,1735150235825,-307.44,0.00011816,2]
[346644632,1735150235834,-201.56,0.00011816,2]
[346644634,1735150235843,-264.05,0.00011816,2]
[346644636,1735150235852,-500.0,0.00011816,2]
[346644638,1735150235861,-500.0,0.00011816,2]
[346644640,1735150235870,-500.0,0.00011816,2]
[346644642,1735150235879,-553.13,0.00011816,2]
[346644644,1735150235889,-500.0,0.00011816,2]
[346644646,1735150235897,-274.2,0.00011816,2]
[346644648,1735150235907,-500.0,0.00011816,2]
[346644650,1735150235916,-500.0,0.00011816,2]
[346644652,1735150235926,-500.0,0.00011816,2]
[346644654,1735150235935,-500.0,0.00011816,2]
[346644656,1735150235943,-500.0,0.00011816,2]
[346644658,1735150235952,-500.0,0.00011816,2]
[346644659,1735150235961,-500.0,0.00011816,2]
[346644661,1735150235970,-500.0,0.00011816,2]
[346644663,1735150235979,-500.0,0.00011816,2]
[346644665,1735150235988,-500.0,0.00011816,2]
[346644667,1735150235998,-500.0,0.00011816,2]
[346644669,1735150236007,-499.65959745,0.00011816,2]
[346644671,1735150236016,-500.0,0.00011816,2]
[346644673,1735150236026,-500.0,0.00011816,2]
[346644675,1735150236035,-500.0,0.00011816,2]
[346644677,1735150236044,-500.0,0.00011816,2]
[346644679,1735150236053,-500.0,0.00011816,2]
[346644681,1735150236063,-500.0,0.00011816,2]
[346644683,1735150236072,-500.0,0.00011816,2]
[346644685,1735150236082,-500.0,0.00011816,2]
[346644687,1735150236091,-500.0,0.00011816,2]
[346644689,1735150236101,-500.0,0.00011816,2]
[346644691,1735150236111,-500.0,0.00011816,2]
[346644693,1735150236120,-500.0,0.00011816,2]
[346644695,1735150236129,-500.0,0.00011816,2]
[346644697,1735150236139,-500.0,0.00011816,2]
[346644699,1735150236148,-500.0,0.00011816,2]
[346644701,1735150236157,-500.0,0.00011816,2]
[346644703,1735150236166,-499.71133869,0.00011816,2]
[346644705,1735150236176,-500.99027561,0.00011817,2]
[346644707,1735150236188,-500.0,0.00011817,2]
[346644709,1735150236198,-500.0,0.00011817,2]
[346644711,1735150236210,-500.0,0.00011817,2]
[346644713,1735150236220,-500.0,0.00011817,2]
[346644715,1735150236230,-502.24790379,0.00011817,2]
[346644717,1735150236240,-500.0,0.00011817,2]
[346644719,1735150236249,-502.31484317,0.00011817,2]
[346644721,1735150236259,-326.15996532,0.00011817,2]
[346644723,1735150236268,-500.0,0.00011817,2]
[346644725,1735150236278,-501.72963227,0.00011817,2]
[346644727,1735150236287,-502.92308917,0.00011817,2]
[346644729,1735150236296,-500.55444039,0.00011817,2]
[346644731,1735150236306,-500.35921893,0.00011817,2]
[346644733,1735150236315,-500.0,0.00011817,2]
[346644735,1735150236324,-500.0,0.00011817,2]
[346644737,1735150236334,-302.51619567,0.00011817,2]
[346644739,1735150236343,-561.92024609,0.00011817,2]
[346644741,1735150236352,-500.93572611,0.00011817,2]
[346644743,1735150236361,-500.0,0.00011817,2]
[346644745,1735150236374,-352.76856041,0.00011817,2]
[346644747,1735150236383,-507.20204533,0.00011817,2]
[346644749,1735150236394,-500.2060757,0.00011817,2]
[346644751,1735150236403,-500.0,0.00011817,2]
[346644753,1735150236412,-500.0,0.00011817,2]
[346644755,1735150236421,-501.41745665,0.00011817,2]
[346644757,1735150236430,-502.22403176,0.00011817,2]
[346644759,1735150236439,-500.0,0.00011817,2]
[346644761,1735150236448,-500.0,0.00011817,2]
[346644763,1735150236459,-503.48221255,0.00011817,2]
[346644765,1735150236468,-500.97761091,0.00011817,2]
[346644767,1735150236477,-504.62144776,0.00011817,2]
[346644769,1735150236487,-501.80840127,0.00011817,2]
[346644771,1735150236497,-502.55719155,0.00011817,2]
[346644773,1735150236506,-501.03105902,0.00011817,2]
[346644775,1735150236515,-763.88889,0.00011817,2]
[346644777,1735150236524,-12659.35437268,0.00011892,2]
[346644922,1735150237964,-20100.0,0.00011892,2]
[346644948,1735150238215,-22795.64562732,0.00011892,2]
[346644950,1735150238225,-942.0,0.000119,2]
[346644952,1735150238234,-164.83792681,0.000119,2]
[346644954,1735150238243,-700.0,0.00011972,2]
[346644956,1735150238253,-1700.0,0.00011972,2]
[346644958,1735150238263,-208.27669842,0.00011983,2]
[346644960,1735150238273,-185.928482,0.00011991,2]
[346644962,1735150238283,-647.39,0.00011991,2]
[346644964,1735150238293,-500.0,0.00011991,2]
[346644966,1735150238302,-163.318512,0.00011991,2]
[346644968,1735150238311,-1343.93399319,0.00011991,2]
[346644970,1735150238321,-500.0,0.00011991,2]
[346644972,1735150238330,-500.0,0.00011991,2]
[346644974,1735150238340,-500.0,0.00011991,2]
[346644976,1735150238349,-500.0,0.00011991,2]
[346644978,1735150238359,-500.0,0.00011991,2]
[346644980,1735150238368,-541.2,0.00011991,2]
[346644982,1735150238377,-500.0,0.00011991,2]
[346644984,1735150238387,-500.0,0.00011991,2]
[346644986,1735150238396,-500.0,0.00011991,2]
[346644988,1735150238406,-2948.04,0.00011991,2]
[346644990,1735150238415,-1136.65,0.00011991,2]
[346644992,1735150238424,-996.96,0.00011991,2]
[346644994,1735150238434,-500.0,0.00011991,2]
[346644996,1735150238443,-1132.09,0.00011991,2]
[346644998,1735150238452,-420.30986373,0.00011991,2]
[346645002,1735150238477,-79.69013627,0.00011991,2]
[346645004,1735150238486,-500.0,0.00011991,2]
[346645006,1735150238495,-500.0,0.00011991,2]
[346645008,1735150238504,-1843.89,0.00011991,2]
[346645010,1735150238513,-500.0,0.00011991,2]
[346645012,1735150238522,-500.0,0.00011991,2]
[346645014,1735150238531,-500.0,0.00011991,2]
[346645016,1735150238540,-595.26,0.00011991,2]
[346645018,1735150238549,-1770.44,0.00011991,2]
[346645020,1735150238559,-572.27,0.00011991,2]
[346645022,1735150238568,-907.94,0.00011991,2]
[346645024,1735150238578,-616.5,0.00011991,2]
[346645025,1735150238587,-500.0,0.00011991,2]
[346645027,1735150238597,-500.0,0.00011991,2]
[346645030,1735150238606,-723.19,0.00011991,2]
[346645032,1735150238615,-520.77,0.00011991,2]
[346645034,1735150238625,-500.0,0.00011991,2]
[346645036,1735150238635,-500.0,0.00011991,2]
[346645038,1735150238644,-728.63,0.00011991,2]
[346645040,1735150238653,-500.0,0.00011991,2]
[346645042,1735150238662,-1147.24,0.00011991,2]
[346645044,1735150238675,-430.03186168,0.00011991,2]
[346645190,1735150240118,8607.7010084,0.00010781,7]
[346645192,1735150240130,-69.96813832,0.00011991,2]
[346645194,1735150240140,-500.0,0.00011991,2]
[346645196,1735150240149,-500.0,0.00011991,2]
[346645198,1735150240159,-500.0,0.00011991,2]
[346645200,1735150240168,-3619.83,0.00011991,2]
[346645202,1735150240179,-500.0,0.00011991,2]
[346645204,1735150240189,-500.0,0.00011991,2]
[346645206,1735150240199,-500.0,0.00011991,2]
[346645208,1735150240210,-500.0,0.00011991,2]
[346645210,1735150240219,-500.0,0.00011991,2]
[346645212,1735150240229,-1384.94,0.00011991,2]
[346645214,1735150240239,-500.0,0.00011991,2]
[346645216,1735150240248,-500.0,0.00011991,2]
[346645218,1735150240256,-500.0,0.00011991,2]
[346645220,1735150240267,-500.0,0.00011991,2]
[346645222,1735150240276,-500.0,0.00011991,2]
[346645224,1735150240286,-1405.89,0.00011991,2]
[346645226,1735150240294,-500.0,0.00011991,2]
[346645228,1735150240303,-500.0,0.00011991,2]